bitfinex/quotes_ETHUSD_20251230
["timestamp","ask_amount","ask_price","bid_price","bid_amount"]
[1767071852173,5.0304012,2946.8,2946.3,0.001]
[1767071852448,5.0304012,2946.4,2946.0,2.3279]
[1767071852619,5.9214012,2946.5,2946.0,2.3279]
[1767071853726,3.3939723,2946.4,2945.6,2.3279]
[1767071853925,4.66489103,2946.4,2945.6,2.3279]
[1767071854844,4.66489103,2946.4,2946.0,0.001]
[1767071855045,5.0304012,2946.1,2945.6,2.3279]
[1767071855220,8.05886333,2946.4,2945.6,2.3279]
[1767071855221,5.0304012,2946.3,2945.6,2.3279]
[1767071855422,5.0304012,2946.3,2945.3,0.001]
[1767071855615,1.30892645,2946.2,2945.3,2.3279]
[1767071856351,1.30892645,2946.2,2945.2,2.3269]
[1767071856554,5.0304012,2946.1,2945.2,2.3269]
[1767071856872,0.891,2946.0,2945.2,2.3269]
[1767071857066,0.891,2946.0,2945.1,0.001]
[1767071857067,4.28545826,2946.0,2945.1,0.001]
[1767071857372,5.68735825,2946.0,2945.2,2.3269]
[1767071858167,2.29289999,2946.0,2945.2,2.3269]
[1767071858358,0.891,2946.0,2945.2,2.3269]
[1767071858544,4.28546193,2946.0,2945.2,2.3269]
[1767071859965,4.28546193,2946.0,2945.1,0.001]
[1767071860164,4.28546193,2946.0,2945.1,2.3279]
[1767071860865,0.891,2946.0,2945.1,5.72336334]
[1767071861070,4.28544205,2946.0,2945.2,2.3269]
[1767071862577,4.28744205,2946.0,2945.2,2.3269]
[1767071863567,4.28744205,2946.0,2945.1,0.001]
[1767071863759,7.6818841,2946.0,2945.2,2.3269]
[1767071863954,5.0304012,2945.9,2945.2,2.3269]
[1767071864361,5.0304012,2945.9,2945.0,0.001]
[1767071864556,5.0304012,2945.9,2944.8,2.3279]
[1767071865389,5.0304012,2945.9,2944.8,2.36185816]
[1767071865872,3.39466358,2945.8,2944.9,2.3269]
[1767071869970,3.39466358,2945.8,2944.9,2.3279]
[1767071870901,0.02368185,2945.6,2944.2,2.4408]
[1767071871191,5.0304012,2945.7,2944.6,2.4408]
[1767071871392,1.18197284,2945.6,2945.0,2.4408]
[1767071871554,0.891,2945.6,2944.9,7.4712012]
[1767071871754,0.891,2945.6,2945.0,2.4408]
[1767071871984,0.891,2945.6,2945.0,2.47475585]
[1767071872485,0.92495485,2945.8,2945.2,2.4408]
[1767071873288,0.92495485,2945.8,2944.9,10.86689209]
[1767071873452,5.9214012,2945.8,2945.0,2.4408]
[1767071873652,3.39477883,2945.7,2945.0,2.4408]
[1767071873854,0.03395485,2945.6,2945.0,2.4408]
[1767071874050,9.31610531,2945.8,2945.0,2.4408]
[1767071874253,13.98444369,2945.8,2945.0,2.4408]
[1767071874666,0.03395485,2945.7,2945.0,2.4408]
[1767071875066,0.03395485,2945.7,2944.6,2.4408]
[1767071875265,0.0576367,2945.7,2944.7,2.3439]
[1767071875660,8.42529527,2945.6,2944.6,2.3439]
[1767071876283,3.394827,2945.7,2944.7,5.0304012]
[1767071876483,0.891,2945.6,2944.8,2.3439]
[1767071877556,0.03395485,2945.7,2944.8,2.3439]
[1767071877756,0.92495485,2945.7,2945.0,2.3439]
[1767071879785,0.03395485,2945.7,2945.0,2.3439]
[1767071879981,0.92495485,2945.7,2945.0,2.3439]
[1767071880765,0.03395485,2945.7,2945.0,5.0304012]
[1767071881089,0.002,2946.0,2945.5,2.3439]
[1767071881383,0.893,2946.0,2945.5,2.3439]
[1767071881577,0.03395485,2945.9,2945.1,2.3439]
[1767071881783,0.03395485,2945.9,2945.1,2.3778547]
[1767071881956,0.893,2946.0,2945.3,2.3439]
[1767071881957,0.002,2946.0,2945.3,2.3439]
[1767071882156,0.891,2945.9,2945.5,2.3439]
[1767071882398,0.893,2946.0,2945.5,2.3439]
[1767071883141,0.893,2946.0,2945.4,2.3439]
[1767071883459,0.002,2946.0,2945.4,2.3439]
[1767071883659,0.893,2946.0,2945.4,2.3439]
[1767071883869,0.03395485,2945.9,2945.1,2.3439]
[1767071890913,0.03395485,2945.9,2945.1,5.7393526]
[1767071891211,0.03395485,2945.9,2945.2,2.3439]
[1767071892379,0.03595485,2945.9,2945.2,2.3439]
[1767071893485,5.0304012,2945.8,2945.2,2.3439]
[1767071893686,5.0304012,2945.6,2944.5,0.001]
[1767071893878,0.891,2945.5,2944.6,2.3439]
[1767071894079,0.59214012,2945.4,2944.6,2.3439]
[1767071899415,3.98728002,2945.4,2944.6,2.3439]
[1767071899605,0.59214012,2945.4,2944.6,2.3439]
[1767071900128,3.98727471,2945.4,2944.6,2.3439]
[1767071900812,7.3824093,2945.4,2944.6,2.3439]
[1767071901012,4.22605514,2945.3,2944.5,0.001]
[1767071901210,4.22605514,2945.3,2944.5,2.3603]
[1767071901419,0.83073642,2945.3,2944.5,2.3603]
[1767071903025,4.22597893,2945.3,2944.5,2.3603]
[1767071905810,0.83073642,2945.3,2944.5,2.3603]
[1767071906506,0.891,2945.2,2944.5,2.3603]
[1767071906706,0.92495485,2945.2,2944.5,2.3603]
[1767071906909,0.03395485,2945.2,2944.5,2.3603]
[1767071907600,0.92495485,2945.2,2944.5,2.3603]
[1767071907813,0.03395485,2945.2,2944.5,2.3603]
[1767071908012,0.92495485,2945.2,2944.5,2.3603]
[1767071910925,0.03395485,2945.2,2944.5,2.3603]
[1767071911134,0.891,2945.2,2944.5,2.3603]
[1767071915418,4.28635834,2945.2,2944.5,2.3603]
[1767071915617,0.891,2945.2,2944.5,2.3603]
[1767071915841,3.43124028,2945.3,2944.5,2.3603]
[1767071916011,4.17308207,2945.3,2944.5,2.3603]
[1767071916215,0.891,2945.2,2944.5,2.3603]
[1767071916414,4.17308207,2945.3,2944.5,2.3603]
[1767071916614,0.891,2945.2,2944.5,2.3603]
[1767071916940,0.77779664,2945.3,2944.5,2.3603]
[1767071917142,0.92695485,2945.3,2944.5,2.3603]
[1767071917315,4.32222389,2945.3,2944.5,2.3603]
[1767071918744,0.92695485,2945.3,2944.5,2.3603]
[1767071919548,0.893,2945.3,2944.6,2.39326047]
[1767071920049,0.893,2945.3,2944.6,2.3593]
[1767071920349,1.32521041,2945.3,2944.6,2.3593]
[1767071921038,0.03395485,2945.2,2944.6,2.3593]
[1767071926120,3.42932051,2945.2,2944.6,2.3593]
[1767071926437,6.82468617,2945.2,2944.1,2.3712]
[1767071926634,0.81498966,2945.1,2944.1,2.3712]
[1767071926839,0.84894451,2945.1,2944.1,2.40516623]
[1767071927235,0.84894451,2945.1,2944.2,2.3712]
[1767071927435,0.81498966,2945.1,2944.2,2.3712]
[1767071928249,0.84894451,2945.1,2944.2,2.3712]
[1767071928435,0.76396758,2945.0,2944.2,2.3712]
[1767071928859,4.15961018,2945.0,2944.2,2.3712]
[1767071930335,0.76396758,2945.0,2944.2,2.3712]
[1767071930550,3.39559611,2945.0,2944.2,2.3712]
[1767071930859,3.42955096,2945.0,2944.2,2.3712]
[1767071931056,6.82514707,2945.0,2944.2,2.3712]
[1767071931373,5.03769717,2944.9,2944.2,2.3712]
[1767071931526,5.03769717,2944.9,2944.1,0.001]
[1767071931527,2.07388894,2944.8,2944.1,0.001]
[1767071932424,2.07388894,2944.8,2944.0,2.3712]
[1767071933857,5.50372617,2944.8,2944.0,2.3712]
[1767071934059,5.50372617,2944.8,2943.9,0.001]
[1767071934564,5.50372617,2944.8,2944.0,2.3712]
[1767071934565,8.89960855,2944.8,2944.0,2.3712]
[1767071934854,0.55037262,2944.7,2944.0,2.3712]
[1767071935055,0.55037262,2944.7,2943.9,2.3722]
[1767071935425,0.57405447,2944.7,2943.9,2.3722]
[1767071935628,3.396047,2944.6,2943.9,2.3722]
[1767071935849,0.7366074,2944.5,2943.9,0.001]
[1767071936262,0.7366074,2944.5,2943.9,2.3722]
[1767071936435,5.77430457,2944.5,2943.8,0.001]
[1767071936628,0.7366074,2944.5,2943.8,0.001]
[1767071936833,6.792094,2944.6,2943.8,0.001]
[1767071936834,0.75287014,2944.4,2943.8,0.001]
[1767071937146,0.891,2944.3,2943.8,0.001]
[1767071937325,0.891,2944.3,2943.8,2.3722]
[1767071937729,0.891,2944.3,2943.6,0.034972]
[1767071938027,4.28740461,2944.3,2943.7,2.3712]
[1767071938227,0.50402748,2944.2,2943.6,0.001]
[1767071938431,5.54172465,2944.2,2943.0,2.3722]
[1767071938631,5.5654065,2944.2,2942.9,3.39797544]
[1767071938937,5.5654065,2944.2,2943.0,2.3712]
[1767071939272,5.5654065,2944.2,2942.8,0.03398124]
[1767071939273,5.03769717,2943.3,2942.8,2.3393]
[1767071939433,0.891,2943.2,2942.5,2.3393]
[1767071940859,0.891,2943.2,2942.6,2.3393]
[1767071941072,3.39685451,2943.9,2942.6,5.03769717]
[1767071941256,0.892,2943.8,2942.7,2.3393]
[1767071941464,0.892,2943.7,2942.7,2.3393]
[1767071941970,0.892,2943.7,2942.9,2.3393]
[1767071942131,3.39688649,2943.9,2942.9,2.3393]
[1767071942338,0.17095823,2946.0,2943.2,2.3393]
[1767071942339,3.92425828,2944.2,2943.2,2.3393]
[1767071942581,0.92595485,2944.1,2943.2,2.3393]
[1767071942934,0.02368185,2944.0,2942.6,2.3393]
[1767071943130,0.02368185,2943.8,2942.6,2.3393]
[1767071943390,0.02368185,2943.8,2942.7,2.3393]
[1767071943872,3.3970853,2943.7,2942.7,5.73753818]
[1767071944165,0.892,2943.6,2942.8,2.3393]
[1767071944536,0.892,2943.5,2942.8,2.3393]
[1767071944740,0.892,2943.5,2942.5,2.3393]
[1767071944944,0.892,2943.5,2942.4,3.39857899]
[1767071945138,1.66298525,2943.5,2942.5,2.3393]
[1767071945846,5.06037889,2943.5,2942.2,10.77580816]
[1767071946060,5.06037889,2943.5,2942.4,2.3393]
[1767071946264,1.66298525,2943.5,2942.6,2.3393]
[1767071946575,0.03395485,2943.7,2942.9,2.3393]
[1767071946876,0.892,2943.6,2942.9,2.3393]
[1767071947940,4.28920442,2943.6,2942.6,3.39835519]
[1767071948151,1.35827078,2943.5,2942.7,2.3393]
[1767071949972,1.38195263,2943.5,2942.7,2.3393]
[1767071950272,0.02368185,2943.3,2942.5,0.001]
[1767071950472,6.81854493,2943.4,2942.5,0.001]
[1767071950641,0.84824094,2943.3,2942.5,2.3403]
[1767071951262,0.84824094,2943.3,2942.5,5.73874092]
[1767071951263,0.892,2943.2,2942.5,5.73874092]
[1767071951460,0.03395485,2943.3,2942.8,7.37699717]
[1767071951745,0.892,2943.4,2942.9,2.37328008]
[1767071952157,0.03395485,2943.3,2942.8,2.76449717]
[1767071952358,0.03395485,2943.3,2942.7,2.3393]
[1767071955577,0.03395485,2943.3,2942.6,3.39827647]
[1767071955775,0.03395485,2943.3,2942.7,2.2774]
[1767071956481,0.03395485,2943.3,2942.8,5.04363369]
[1767071956782,0.03395485,2943.3,2942.8,7.32103369]
[1767071957353,0.03395485,2943.3,2942.8,5.04363369]
[1767071957550,0.92595485,2943.4,2942.9,2.2774]
[1767071959853,0.92595485,2943.4,2942.8,5.04363369]
[1767071959854,4.75580192,2943.4,2942.7,2.2774]
[1767071960178,4.77948377,2943.4,2942.7,2.2774]
[1767071961476,4.77948377,2943.4,2942.5,5.04463369]
[1767071961666,1.35828743,2943.4,2942.7,5.04363369]
[1767071961858,1.35828743,2943.4,2942.7,7.32103369]
[1767071962059,0.92595485,2943.4,2942.7,5.04363369]
[1767071962278,0.92595485,2943.4,2942.9,5.04363369]
[1767071962477,3.39927831,2943.6,2942.9,5.04363369]
[1767071962478,0.892,2943.3,2942.9,5.04363369]
[1767071962662,0.892,2943.3,2942.9,7.32103369]
[1767071962863,0.892,2943.3,2942.9,5.04363369]
[1767071963153,0.892,2943.3,2943.0,2.2774]
[1767071963355,0.03395485,2943.5,2942.9,7.32103369]
[1767071963581,0.892,2943.4,2942.9,7.32103369]
[1767071963787,0.03395485,2943.3,2942.9,7.32103369]
[1767071964173,0.03395485,2943.3,2942.9,5.04363369]
[1767071964376,0.03395485,2943.3,2943.0,2.2774]
[1767071964559,0.892,2943.3,2943.0,2.2774]
[1767071964960,0.892,2943.3,2942.9,5.04363369]
[1767071965383,0.892,2943.3,2942.9,7.32103369]
[1767071965883,0.892,2943.3,2942.9,5.04363369]
[1767071966090,0.892,2943.3,2943.0,2.2774]
[1767071966277,0.892,2943.3,2942.9,5.04363369]
[1767071966674,0.03395485,2943.5,2942.9,5.04363369]
[1767071966998,0.892,2943.4,2943.0,2.2774]
[1767071967283,0.03395485,2943.3,2943.0,2.2774]
[1767071967455,0.03395485,2943.3,2942.9,5.04363369]
[1767071967659,0.92595485,2943.3,2942.9,5.04363369]
[1767071967969,0.92595485,2943.3,2943.0,2.2774]
[1767071968169,0.92595485,2943.3,2942.9,5.04363369]
[1767071968490,0.92595485,2943.3,2942.9,7.32103369]
[1767071969359,0.03395485,2943.3,2942.9,5.04363369]
[1767071969567,0.892,2943.4,2943.0,2.2774]
[1767071969887,0.892,2943.4,2942.9,5.04363369]
[1767071970492,0.892,2943.4,2943.0,2.2774]
[1767071970990,0.892,2943.4,2942.9,5.04363369]
[1767071971191,0.892,2943.4,2943.0,2.2774]
[1767071972366,3.39925243,2943.6,2943.0,2.2774]
[1767071972694,1.23192524,2943.5,2943.0,2.2774]
[1767071973790,0.33992524,2943.5,2943.0,2.2774]
[1767071973996,0.892,2943.4,2943.0,2.2774]
[1767071974375,0.894,2943.4,2943.0,2.2774]
[1767071976570,0.892,2943.4,2943.0,2.2774]
[1767071977001,0.892,2943.4,2942.9,5.04363369]
[1767071977378,0.892,2943.4,2943.0,2.2774]
[1767071978088,0.892,2943.4,2942.9,5.04363369]
[1767071978288,0.892,2943.5,2943.0,2.2774]
[1767071979896,0.892,2943.5,2942.9,5.04363369]
[1767071980106,0.892,2943.5,2943.0,2.2774]
[1767071980723,0.892,2943.5,2942.9,5.04363369]
[1767071981000,0.892,2943.5,2943.0,2.2774]
[1767071981200,0.892,2943.5,2943.2,2.2774]
[1767071981501,0.892,2943.5,2943.1,5.07761146]
[1767071981502,0.892,2943.5,2943.1,5.04363369]
[1767071981996,0.892,2943.5,2943.2,2.2774]
[1767071982584,0.002,2943.5,2943.1,5.04363369]
[1767071982790,0.002,2943.5,2943.2,2.2774]
[1767071982983,0.894,2943.5,2943.2,2.2774]
[1767071983377,0.894,2943.5,2943.1,5.04363369]
[1767071983578,0.894,2943.5,2943.2,2.2774]
[1767071984198,0.894,2943.5,2943.1,5.04363369]
[1767071984404,0.894,2943.5,2943.2,2.2774]
[1767071985375,0.002,2943.5,2943.2,2.2774]
[1767071985569,0.002,2943.6,2943.1,5.04363369]
[1767071985771,3.87994215,2944.1,2943.5,5.04363369]
[1767071985974,3.39650838,2944.2,2943.2,2.343]
[1767071986178,3.39650838,2944.2,2943.6,2.343]
[1767071986407,3.39627767,2944.4,2943.3,2.343]
[1767071986594,3.39627767,2944.4,2943.2,3.39760344]
[1767071986595,3.39627767,2944.4,2943.8,2.343]
[1767071986774,3.39627767,2944.4,2943.6,5.04363369]
[1767071987006,3.39627767,2944.4,2943.7,2.343]
[1767071987204,4.16729017,2944.4,2943.7,2.343]
[1767071987402,4.16729017,2944.4,2943.6,5.04363369]
[1767071987591,0.02368185,2944.3,2943.3,5.04363369]
[1767071987910,0.02368185,2944.3,2943.4,2.343]
[1767071988254,0.02368185,2944.3,2943.6,2.343]
[1767071989324,4.16729017,2944.4,2943.4,2.343]
[1767071989482,0.02368185,2944.3,2943.6,2.343]
[1767071990404,0.02568185,2944.3,2943.6,2.343]
[1767071990908,0.02568185,2944.3,2943.5,5.04363369]
[1767071991107,0.02568185,2944.3,2943.6,2.343]
[1767071991303,3.39650838,2944.2,2943.6,2.343]
[1767071991505,0.02368185,2944.1,2943.6,2.343]
[1767071991812,0.02368185,2944.1,2943.3,5.04363369]
[1767071992108,0.02368185,2944.1,2943.4,2.343]
[1767071992807,0.02368185,2944.1,2943.2,2.343]
[1767071992808,0.02368185,2943.9,2943.2,2.343]
[1767071993006,0.68166986,2944.0,2943.2,2.343]
[1767071993508,0.02368185,2943.9,2943.3,5.04363369]
[1767071993710,3.42035577,2944.1,2943.4,2.343]
[1767071994100,6.81702969,2944.1,2943.4,2.343]
[1767071994310,0.77090297,2944.0,2943.1,5.04363369]
[1767071994612,6.81702969,2944.1,2943.2,2.343]
[1767071995312,6.81702969,2944.1,2943.1,5.04363369]
[1767071995611,6.81702969,2944.1,2943.2,2.3013]
[1767071995816,3.39667392,2944.1,2943.2,2.3013]
[1767071997804,3.39650838,2944.2,2943.2,2.3013]
[1767071998011,3.39650838,2944.2,2943.3,2.3013]
[1767071998411,0.02368185,2944.1,2943.3,2.3013]
[1767071998614,0.02568185,2944.1,2943.3,2.3013]
[1767072000810,0.002,2944.1,2943.3,2.3013]
[1767072001011,0.002,2944.1,2943.4,2.3013]
[1767072002622,0.002,2944.1,2943.3,5.04363369]
[1767072002914,0.002,2944.1,2943.4,2.3013]
[1767072003922,0.02568185,2944.1,2943.4,2.3013]
[1767072004309,0.02568185,2944.1,2943.2,0.892]
[1767072004522,5.06931554,2944.1,2943.2,0.892]
[1767072004698,4.58298328,2944.0,2943.2,2.3013]
[1767072005222,4.58298328,2944.0,2943.1,0.892]
[1767072005422,5.06731554,2943.9,2943.1,0.892]
[1767072005919,0.02368185,2943.7,2943.0,2.3023]
[1767072006219,0.53278159,2943.7,2943.0,2.3023]
[1767072006401,0.53278159,2943.7,2943.3,0.001]
[1767072007306,4.58298328,2944.0,2943.4,2.3013]
[1767072007508,3.39673913,2944.0,2943.4,2.3013]
[1767072008315,3.39673913,2944.0,2943.2,5.04363369]
[1767072008516,3.39673913,2944.0,2943.3,2.3013]
[1767072009900,3.39673913,2944.0,2943.1,7.34493369]
[1767072010429,3.39673913,2944.0,2943.2,2.3013]
[1767072010601,0.3422421,2943.9,2943.2,2.3013]
[1767072011195,3.39673913,2944.0,2943.2,2.3013]
[1767072011529,3.39673913,2944.0,2943.1,5.04363369]
[1767072011906,3.39673913,2944.0,2943.2,2.3013]
[1767072012807,0.02368185,2943.9,2943.2,2.3013]
[1767072013507,0.02368185,2943.9,2943.0,2.3013]
[1767072013730,1.21233843,2943.9,2943.0,2.3013]
[1767072014325,4.60925312,2943.9,2943.0,2.3013]
[1767072014724,1.18865658,2943.9,2943.1,2.3013]
[1767072014924,3.39676909,2944.0,2943.3,2.3013]
[1767072015139,0.02568185,2944.1,2943.1,0.001]
[1767072015140,3.42235364,2944.1,2943.1,5.07861146]
[1767072015298,3.42235364,2944.1,2943.2,2.3013]
[1767072016135,3.42235364,2944.1,2943.2,2.33527662]
[1767072016319,4.7764908,2944.1,2943.2,2.33527662]
[1767072016631,4.7764908,2944.1,2943.2,2.3013]
[1767072017424,8.17316259,2944.1,2943.1,0.001]
[1767072017629,0.02368185,2943.8,2942.9,3.39797915]
[1767072017828,0.02368185,2943.8,2943.0,2.4166]
[1767072018602,0.02368185,2943.8,2942.8,5.81472423]
[1767072018796,3.42066032,2943.8,2942.9,2.4166]
[1767072020935,4.77646184,2944.1,2943.0,2.4166]
[1767072021236,0.02368185,2943.9,2943.0,2.4166]
[1767072021402,0.02368185,2943.9,2942.8,3.39807841]
[1767072021804,0.02368185,2943.9,2942.9,2.4166]
[1767072022340,0.02368185,2943.9,2942.7,4.290156]
[1767072022531,0.02368185,2943.9,2942.8,2.4166]
[1767072022705,0.68171601,2943.8,2943.0,0.001]
[1767072022911,0.68371601,2943.8,2943.0,0.001]
[1767072023112,4.0807908,2943.8,2943.0,2.4176]
[1767072024037,4.0807908,2943.8,2943.0,0.001]
[1767072024240,4.0807908,2943.8,2942.8,3.39810025]
[1767072024415,4.0807908,2943.8,2942.9,2.4166]
[1767072025624,4.0807908,2943.8,2942.8,3.39810025]
[1767072025836,4.0807908,2943.8,2942.9,2.4166]
[1767072026818,4.08071438,2943.8,2943.0,2.4166]
[1767072027646,4.08071438,2943.8,2942.9,2.4166]
[1767072028628,0.02368185,2943.7,2942.9,2.4166]
[1767072028835,0.02368185,2943.5,2942.9,2.4166]
[1767072029228,0.02368185,2943.5,2942.7,0.892]
[1767072029441,0.02368185,2943.5,2942.8,2.4166]
[1767072030337,3.42101811,2943.5,2942.7,0.892]
[1767072030539,3.42101811,2943.5,2942.7,3.3086]
[1767072030743,3.42101811,2943.5,2942.8,2.4166]
[1767072031224,3.42101811,2943.5,2942.7,0.892]
[1767072031425,3.42101811,2943.5,2942.8,2.4166]
[1767072031757,3.39724658,2943.6,2942.8,2.4166]
[1767072032049,4.1476112,2943.6,2942.7,0.892]
[1767072032464,4.1476112,2943.6,2942.8,2.4166]
[1767072033024,4.1476112,2943.6,2942.7,0.892]
[1767072033230,4.1476112,2943.6,2942.8,2.4166]
[1767072034754,4.1476112,2943.6,2942.7,0.892]
[1767072034959,4.08356957,2943.5,2942.8,2.4166]
[1767072038442,4.08356957,2943.5,2942.7,0.892]
[1767072038649,4.08356957,2943.5,2942.8,2.4166]
[1767072038846,4.08356957,2943.5,2942.7,0.892]
[1767072039054,0.02368185,2943.4,2942.6,0.001]
[1767072039367,0.43203881,2943.4,2942.6,2.4176]
[1767072040053,0.43203881,2943.4,2942.3,2.4166]
[1767072040566,0.02368185,2943.2,2942.3,2.4166]
[1767072040732,0.68187758,2943.1,2942.3,2.4166]
[1767072041831,0.02368185,2943.0,2942.3,2.4166]
[1767072042030,0.02368185,2943.0,2942.1,0.001]
[1767072042031,0.02368185,2943.0,2942.1,2.4176]
[1767072042263,0.02368185,2942.8,2942.1,2.4176]
[1767072042559,3.39823971,2942.7,2941.8,2.4176]
[1767072042751,0.34219216,2942.6,2941.8,2.4176]
[1767072043340,0.34219216,2942.6,2941.7,0.892]
[1767072043669,0.34219216,2942.6,2941.8,2.4166]
[1767072044434,3.7405529,2942.6,2941.8,2.4166]
[1767072045149,3.7405529,2942.6,2941.7,0.892]
[1767072045349,0.37405529,2942.5,2941.8,0.03399279]
[1767072045556,0.37405529,2942.5,2941.8,2.4166]
[1767072045946,0.37405529,2942.5,2941.6,3.40043253]
[1767072046174,0.37405529,2942.5,2941.7,2.3394]
[1767072046981,0.37405529,2942.5,2941.8,2.3404]
[1767072047150,0.37961251,2942.4,2941.8,2.3404]
[1767072047659,0.37961251,2942.4,2941.6,0.001]
[1767072047854,0.37961251,2942.4,2941.6,3.43450145]
[1767072048065,0.37961251,2942.4,2941.7,2.3394]
[1767072048375,0.37961251,2942.4,2941.6,0.001]
[1767072048579,0.37780862,2942.3,2941.5,3.40058556]
[1767072048748,0.37780862,2942.3,2941.6,2.3394]
[1767072050354,0.37780862,2942.3,2941.5,0.001]
[1767072050551,0.37780862,2942.3,2941.4,3.43468814]
[1767072050865,0.02368185,2942.2,2941.5,2.3394]
[1767072051075,0.4036975,2942.2,2941.2,2.33122067]
[1767072051274,0.02368185,2942.0,2940.9,2.3394]
[1767072051454,0.02368185,2941.5,2940.6,0.001]
[1767072051790,0.02368185,2941.8,2940.7,2.3394]
[1767072051791,0.02368185,2941.4,2940.7,2.3394]
[1767072052651,0.36837303,2941.4,2940.6,3.40166135]
[1767072052864,0.36837303,2941.4,2940.7,2.3394]
[1767072053080,0.36837303,2941.4,2940.8,2.3394]
[1767072053081,0.34469118,2941.4,2940.8,2.3394]
[1767072053289,0.892,2941.9,2941.0,2.3394]
[1767072053456,0.02368185,2941.8,2941.0,2.3394]
[1767072053780,0.02368185,2941.8,2940.7,3.4005141]
[1767072053781,0.02368185,2941.6,2940.7,2.3394]
[1767072054289,7.18225261,2942.1,2940.7,3.43453249]
[1767072054486,3.3991638,2941.9,2940.9,2.3394]
[1767072054787,0.38001565,2942.2,2941.0,2.3394]
[1767072054960,3.39847068,2942.5,2941.3,2.3394]
[1767072055166,4.29047068,2942.5,2941.3,2.3394]
[1767072055365,3.39847068,2942.5,2941.3,2.3394]
[1767072055891,3.39800876,2942.9,2941.6,2.3984]
[1767072056074,5.87643585,2942.8,2941.8,2.3984]
[1767072056273,0.34216906,2942.8,2941.4,2.3984]
[1767072056675,3.39823971,2942.7,2941.6,2.3984]
[1767072057061,3.42192156,2942.7,2941.6,2.3984]
[1767072057262,0.02368185,2942.5,2940.7,3.40049114]
[1767072057453,0.02368185,2942.5,2940.9,2.3984]
[1767072057454,0.02368185,2942.3,2940.9,2.3984]
[1767072057649,0.02368185,2942.3,2940.8,0.92600435]
[1767072057650,0.02368185,2942.3,2941.5,2.3984]
[1767072057890,0.02368185,2942.6,2941.5,3.2904]
[1767072058094,0.02368185,2942.6,2941.5,0.892]
[1767072058259,0.02368185,2942.6,2941.6,2.3984]
[1767072059879,0.02368185,2942.6,2941.5,0.892]
[1767072059880,3.39847068,2942.5,2941.5,0.892]
[1767072060073,3.39847068,2942.5,2941.6,2.3984]
[1767072060074,4.08048681,2942.5,2941.6,2.3984]
[1767072060287,0.68201613,2942.5,2941.6,2.3984]
[1767072061086,3.39826755,2942.7,2941.7,2.3984]
[1767072062183,3.39826755,2942.7,2941.7,5.79777401]
[1767072062358,3.39826755,2942.7,2941.8,2.3984]
[1767072065389,0.02368185,2942.8,2941.9,2.3984]
[1767072066092,3.39808537,2942.9,2942.1,2.3984]
[1767072066288,0.02368185,2943.0,2942.1,2.3984]
[1767072066465,3.42157952,2943.0,2942.1,2.3984]
[1767072066808,3.42134425,2943.2,2942.2,2.3984]
[1767072066979,0.02368185,2943.0,2942.2,2.3984]
[1767072067298,0.02368185,2942.8,2942.1,0.892]
[1767072067499,0.002,2942.7,2942.2,2.3984]
[1767072068098,0.002,2942.7,2942.1,4.29090426]
[1767072068282,0.002,2942.7,2942.2,2.3984]
[1767072070588,0.002,2942.7,2942.1,0.892]
[1767072070963,0.002,2942.7,2942.2,2.3984]
[1767072072397,0.002,2942.7,2942.0,3.39900645]
[1767072072398,0.002,2942.7,2942.0,4.29100645]
[1767072072693,0.002,2942.7,2942.1,2.3984]
[1767072073292,0.002,2942.7,2942.1,3.39892901]
[1767072073473,0.002,2942.7,2942.2,2.3984]
[1767072074700,0.002,2942.7,2942.3,2.3984]
[1767072074903,0.002,2942.7,2942.3,2.43238701]
[1767072075204,0.02368185,2943.2,2942.4,2.3984]
[1767072075390,0.002,2942.7,2942.4,2.3984]
[1767072075585,7.30117826,2943.3,2942.4,2.3984]
[1767072075806,7.30117826,2943.3,2942.4,2.43238586]
[1767072075974,7.30117826,2943.3,2942.4,2.3984]
[1767072076176,0.73011783,2943.2,2942.4,2.3984]
[1767072077475,0.73011783,2943.2,2942.4,5.79698279]
[1767072077674,0.73011783,2943.2,2942.5,2.3798]
[1767072081395,3.903624,2943.3,2942.5,2.3798]
[1767072082318,7.30119614,2943.3,2942.5,2.3798]
[1767072083419,7.30319614,2943.3,2942.5,2.3798]
[1767072083607,7.30319614,2943.3,2942.6,2.3798]
[1767072083917,0.02368185,2943.1,2942.6,2.3798]
[1767072084088,0.02368185,2943.1,2942.5,0.892]
[1767072084283,0.02368185,2943.1,2942.5,3.2718]
[1767072084718,3.42149474,2943.1,2942.5,3.2718]
[1767072085087,3.42149474,2943.1,2942.5,2.3798]
[1767072085418,0.41518144,2943.0,2942.5,2.3798]
[1767072085847,0.02368185,2942.9,2942.3,3.2718]
[1767072085990,0.02368185,2942.9,2942.4,2.3798]
[1767072090522,3.39789846,2943.0,2942.4,2.3798]
[1767072090699,0.02368185,2942.9,2942.4,2.3798]
[1767072093363,0.02368185,2942.7,2942.0,2.3798]
[1767072095741,0.02368185,2942.7,2942.1,2.3798]
[1767072095918,0.87289067,2942.9,2942.1,2.3798]
[1767072097036,0.87289067,2942.9,2942.2,5.04482602]
[1767072097037,0.84920882,2942.9,2942.2,5.04482602]
[1767072097339,0.002,2943.0,2942.5,2.3798]
[1767072103342,7.30321569,2943.3,2942.7,2.3798]
[1767072103343,3.88194215,2943.3,2942.7,2.3798]
[1767072103521,0.002,2943.3,2942.9,2.3798]
[1767072104131,3.39955932,2943.3,2942.9,2.3798]
[1767072105139,0.002,2943.3,2942.9,2.3798]
[1767072105313,0.02568185,2943.3,2942.9,2.3798]
[1767072112250,0.002,2943.3,2942.9,2.3798]
[1767072115049,0.02568185,2943.3,2942.9,2.3798]
[1767072115246,1.21477728,2943.3,2942.9,2.3798]
[1767072116345,8.4425171,2943.2,2942.5,2.3847]
[1767072117553,5.04482602,2943.2,2942.5,2.3847]
[1767072117926,4.61233199,2943.3,2942.5,2.3847]
[1767072122469,4.61233199,2943.3,2941.1,0.001]
[1767072122470,0.02368185,2942.6,2941.1,0.001]
[1767072122761,0.02368185,2942.6,2941.2,2.3847]